Workbook

Sheet County Leg. Dist 7
F1: Voter Registration | G1: % Turnout | H1: Kimberly C. Perrigo | I1: Karen J. Freeman | J1: Write-Ins | K1: Blanks/Voids | L1: Total Votes Cast
A2: County Legislator District 7 (Republican) Vote for One
A3: ED | B3: EVBM/Absentee | C3: Affidavit | D3: Machine Turnout | E3: Total Turnout
A4: Champion 1 | B4: 7 | C4: 2 | D4: 166 | E4: 175 | F4: 891 | G4: =(E4/F4) -> 0.1964085297 | H4: 63 | I4: 111 | J4: 1 | K4: 0 | L4: 175
A5: Champion 2 | B5: 5 | C5: 0 | D5: 49 | E5: 54 | F5: 408 | G5: 0.1323529412 | H5: 35 | I5: 19 | J5: 0 | K5: 0 | L5: 54
A6: LeRay 6 | B6: 1 | C6: 0 | D6: 0 | E6: 1 | F6: 129 | G6: 0.007751937984 | H6: 1 | I6: 0 | J6: 0 | K6: 0 | L6: 1
A7: District Totals | B7: 13 | C7: 2 | D7: 215 | E7: 230 | F7: 1428 | G7: 0.1610644258 | H7: 99 | I7: 130 | J7: 1 | K7: 0 | L7: 230
A14: Write-ins
A15: John Schell | B15: 1

Sheet Alex Supervisor
F1: Voter Registration | G1: % Turnout | H1: Brent H. Sweet | I1: Raymond Savage | J1: Write-Ins | K1: Blanks/Voids | L1: Total Votes Cast
A2: Alexandria Town Supervisor (Republican) Vote for One
A3: ED | B3: EVBM/Absentee | C3: Affidavit | D3: Machine Turnout | E3: Total Turnout
A4: Alexandria 1 | B4: 4 | C4: 0 | D4: 58 | E4: 62 | F4: 267 | G4: =(E4/F4) -> 0.2322097378 | H4: 53 | I4: 7 | J4: 0 | K4: 2 | L4: =sum(H4:K4) -> 62
A5: Alexandria 2 | B5: 5 | C5: 0 | D5: 119 | E5: 124 | F5: 483 | G5: 0.2567287785 | H5: 108 | I5: 16 | J5: 0 | K5: 0 | L5: 124
A6: Alexandria 3 | B6: 1 | C6: 0 | D6: 176 | E6: 177 | F6: 584 | G6: 0.3030821918 | H6: 121 | I6: 53 | J6: 1 | K6: 2 | L6: 177
A7: District Totals | B7: =sum(B4:B6) -> 10 | C7: 0 | D7: 353 | E7: 363 | F7: 1334 | G7: 0.272113943 | H7: =SUM(H4:H6) -> 282 | I7: 76 | J7: 1 | K7: 4 | L7: 363
A11: Write-ins
A12: Scatter | B12: 1

Sheet Alex Justice
F1: Voter Registration | G1: % Turnout | H1: Jenna M. Stine McKelroy | I1: David M. Cortright | J1: Write-in | K1: Blank/Void | L1: Total Votes Cast
A2: Alexandria Town Justice (Republican) Vote for One
A3: ED | B3: EVBM/Absentee | C3: Affidavit | D3: Machine Turnout | E3: Total Turnout
A4: Alexandria 1 | B4: 4 | C4: 0 | D4: 58 | E4: 62 | F4: 267 | G4: =(E4/F4) -> 0.2322097378 | H4: 25 | I4: 37 | J4: 0 | K4: 0 | L4: =sum(H4:K4) -> 62
A5: Alexandria 2 | B5: 5 | D5: 119 | E5: 124 | F5: 483 | G5: 0.2567287785 | H5: 39 | I5: 82 | J5: 0 | K5: 3 | L5: 124
A6: Alexandria 3 | B6: 1 | D6: 176 | E6: 177 | F6: 584 | G6: 0.3030821918 | H6: 70 | I6: 105 | J6: 0 | K6: 2 | L6: 177
A7: District Totals | B7: =sum(B4:B6) -> 10 | C7: 0 | D7: 353 | E7: 363 | F7: 1334 | G7: 0.272113943 | H7: =sum(H4:H6) -> 134 | I7: 224 | J7: 0 | K7: 5 | L7: 363

Sheet Alex High. Supt.
F1: Voter Registration | G1: % Turnout | H1: Stephen D. Umstead | I1: Zachary R. Calhoun | J1: Write-ins | K1: Blandk/Void | L1: Total Votes Cast
A2: Alexandria Town Highway Superintendent (Republican) Vote for One
A3: ED | B3: EVBM/Absentee | C3: Affidavit | D3: Machine Turnout | E3: Total Turnout
A4: Alexandria 1 | B4: 4 | C4: 0 | D4: 58 | E4: 62 | F4: 267 | G4: =(E4/F4) -> 0.2322097378 | H4: 13 | I4: 47 | J4: 1 | K4: 1 | L4: =sum(H4:K4) -> 62
A5: Alexandria 2 | B5: 5 | D5: 119 | E5: 124 | F5: 483 | G5: 0.2567287785 | H5: 41 | I5: 81 | J5: 0 | K5: 2 | L5: 124
A6: Alexandria 3 | B6: 1 | D6: 176 | E6: 177 | F6: 584 | G6: 0.3030821918 | H6: 59 | I6: 115 | J6: 1 | K6: 2 | L6: 177
A7: District Totals | B7: =sum(B4:B6) -> 10 | C7: 0 | D7: 353 | E7: 363 | F7: 1334 | G7: 0.272113943 | H7: =SUM(H4:H6) -> 113 | I7: 243 | J7: 2 | K7: 5 | L7: 363
A11: Write-ins
A12: Brent Sweet | B12: 1
A13: Tim Davidson | B13: 1

Sheet CV Supervisor
F1: Voter Registration | G1: % Turnout | H1: Daniel A. Wiley | I1: Christine A. Stark | J1: Write-ins | K1: Blank/Void | L1: Total Votes Cast
A2: Cape Vincent Supervisor (Republican) Vote for One
A3: ED | B3: EVBM/Absentee | C3: Affidavit | D3: Machine Turnout | E3: Total Turnout
A4: Cape Vincent 1 | B4: 6 | C4: 0 | D4: 114 | E4: =SUM(B4:D4) -> 120 | F4: 243 | G4: =(E4/F4) -> 0.4938271605 | H4: 55 | I4: 64 | J4: 1 | K4: 0 | L4: =sum(H4:K4) -> 120
A5: Cape Vincent 2 | B5: 6 | C5: 2 | D5: 218 | E5: 226 | F5: 538 | G5: 0.4200743494 | H5: 101 | I5: 125 | J5: 0 | K5: 0 | L5: 226
A6: District Totals | B6: =sum(B4:B5) -> 12 | C6: 2 | D6: 332 | E6: 346 | F6: =SUM(C6:E6) -> 680 | G6: 0.5088235294 | H6: =sum(H4:H5) -> 156 | I6: 189 | J6: 1 | K6: 0 | L6: 346
A11: Write-ins
A12: Scatter | B12: 1

Sheet Clayton Council
F1: Voter Registration | G1: % Turnout | H1: Kevin G. Patchen | I1: Steven F. Dorr | J1: James C. Kenney | K1: Write-ins | L1: Blank/Void | M1: Total Votes Cast
A2: Clayton Town Council (Republican) Vote for 2
A3: ED | B3: EVBM/Absentee | C3: Affidavit | D3: Machine Turnout | E3: Total Turnout
A4: Clayton 1 | B4: 7 | C4: 0 | D4: 32 | E4: =SUM(B4:D4) -> 39 | F4: 438 | G4: =(E4/F4) -> 0.08904109589 | H4: 16 | I4: 32 | J4: 18 | K4: 1 | L4: 11 | M4: =sum(H4:L4) -> 78
A5: Clayton 2 | B5: 1 | C5: 0 | D5: 47 | E5: 48 | F5: 543 | G5: 0.08839779006 | H5: 21 | I5: 38 | J5: 19 | K5: 0 | L5: 18 | M5: 96
A6: Clayton3 | B6: 1 | C6: 0 | D6: 50 | E6: 51 | F6: 556 | G6: 0.09172661871 | H6: 22 | I6: 36 | J6: 29 | K6: 0 | L6: 17 | M6: 104
A7: District Totals | B7: =SUM(B4:B6) -> 9 | C7: 0 | D7: 129 | E7: 138 | F7: 1537 | G7: 0.08978529603 | H7: =SUM(H4:H6) -> 59 | I7: 106 | J7: 66 | K7: 1 | L7: 46 | M7: =sum(M4:M6) -> 278
A11: Write-ins
A12: Joseph Mitchell | B12: 1

Sheet Hounsfield Council
F1: Voter Registration | G1: % Turnout | H1: Jake T. Ledoux | I1: Christopher H. Lee | J1: Bryon Holmes | K1: Write-ins | L1: Blank/Void | M1: Total Votes Cast
A2: Hounsfield Town Council (Republican) Vote for 2
A3: ED | B3: EVBM/Absentee | C3: Affidavit | D3: Machine Turnout | E3: Total Turnout
A4: Hounsfield 1 | B4: 4 | C4: 0 | D4: 30 | E4: =SUM(B4:D4) -> 34 | F4: 397 | G4: =(E4/F4) -> 0.08564231738 | H4: 28 | I4: 19 | J4: 8 | K4: 0 | L4: 13 | M4: =sum(H4:L4) -> 68
A5: Hounsfield 2 | B5: 5 | C5: 1 | D5: 69 | E5: 76 | F5: 519 | G5: 0.1464354528 | H5: 57 | I5: 37 | J5: 39 | K5: 0 | L5: 19 | M5: 152
A6: Hounsfield 3 | B6: 0 | C6: 1 | D6: 27 | E6: 27 | F6: 122 | G6: 0.2213114754 | H6: 15 | I6: 15 | J6: 9 | K6: 0 | L6: 15 | M6: 54
A7: District Totals | B7: =SUM(B4:B6) -> 9 | C7: 2 | D7: 126 | E7: 137 | F7: 1038 | G7: 0.1319845857 | H7: =SUM(H4:H6) -> 100 | I7: 71 | J7: 56 | K7: 0 | L7: 47 | M7: =sum(M4:M6) -> 274

Sheet Lyme Council
F1: Voter Registration | G1: % Turnout | H1: Jennifer L. Kingsley | I1: Donald R. Bourquin | J1: Timothy V. Farell | K1: Write-ins | L1: Blank/Void | M1: Total Votes Cast
A2: Lyme Town Council (Republican) Vote for 2
A3: ED | B3: EVBM/Absentee | C3: Affidavit | D3: Machine Turnout | E3: Total Turnout
A4: Lyme 1 | B4: 2 | C4: 0 | D4: 17 | E4: =SUM(B4:D4) -> 19 | F4: 183 | G4: =(E4/F4) -> 0.1038251366 | H4: 10 | I4: 13 | J4: 5 | K4: 1 | L4: 9 | M4: =sum(H4:L4) -> 38
A5: Lyme 2 | B5: 8 | C5: 0 | D5: 85 | E5: 93 | F5: 638 | G5: 0.1457680251 | H5: 60 | I5: 56 | J5: 43 | K5: 1 | L5: 26 | M5: 186
A6: District Totals | B6: =SUM(B4:B5) -> 10 | C6: 0 | D6: 102 | E6: 112 | F6: 821 | G6: 0.1364190012 | H6: =SUM(H4:H5) -> 70 | I6: 69 | J6: 48 | K6: 2 | L6: 35 | M6: =sum(M4:M5) -> 224
A9: Write-ins
A10: Tom Donovan | B10: 1
A11: Val Rust | B11: 1

Sheet Orleans Council
F1: Voter Registration | G1: % Turnout | H1: Alicia M. Dewey | I1: Andrew (Andy) Greene | J1: Danielle Jobson | K1: Write-ins | L1: Blank/Void | M1: Total Votes Cast
A2: Orleans Town Council (Democrat) Vote for 2
A3: ED | B3: EVBM/Absentee | C3: Affidavit | D3: Machine Turnout | E3: Total Turnout
A4: Orleans 1 | B4: 2 | C4: 0 | D4: 31 | E4: =sum(B4:D4) -> 33 | F4: 247 | G4: =(E4/F4) -> 0.1336032389 | H4: 20 | I4: 13 | J4: 23 | K4: 1 | L4: 9 | M4: =sum(H4:L4) -> 66
A5: Orleans 2 | B5: 11 | C5: 1 | D5: 41 | E5: 53 | F5: 166 | G5: 0.3192771084 | H5: 33 | I5: 44 | J5: 15 | K5: 0 | L5: 14 | M5: 106
A6: District Totals | B6: =SUM(B4:B5) -> 13 | C6: 1 | D6: 72 | E6: 86 | F6: =SUM(F4) -> 247 | G6: 0.3481781377 | H6: =SUM(H4:H5) -> 53 | I6: 57 | J6: 38 | K6: 1 | L6: 23 | M6: =sum(M4:M5) -> 172
A10: Write-ins
A11: Tyler Lashomb | B11: 1

Sheet Pamelia Council
F1: Voter Registration | G1: % Turnout | H1: Shane M. Call | I1: Ricky H. VanTassel | J1: David W. Hart | K1: Write-ins | L1: Blank/Void | M1: Total Votes Cast
A2: PameliaTown Council (Republican) Vote for 2
A3: ED | B3: EVBM/Absentee | C3: Affidavit | D3: Machine Turnout | E3: Total Turnout
A4: Pamelia 1 | B4: 3 | C4: 1 | D4: 51 | E4: =SUM(B4:D4) -> 55 | F4: 413 | G4: =(E4/F4) -> 0.1331719128 | H4: 37 | I4: 24 | J4: 25 | K4: 0 | L4: 24 | M4: =sum(H4:L4) -> 110
A5: Pamelia 2 | B5: 5 | C5: 0 | D5: 18 | E5: 23 | F5: 653 | G5: 0.03522205207 | H5: 9 | I5: 8 | J5: 14 | K5: 0 | L5: 15 | M5: 46
A6: Pamelia 3 | B6: 0 | C6: 0 | D6: 0 | E6: 0 | F6: 3 | G6: 0 | H6: 0 | I6: 0 | J6: 0 | K6: 0 | L6: 0 | M6: 0
A7: District Totals | B7: =SUM(B4:B6) -> 8 | C7: 1 | D7: 69 | E7: 78 | F7: 1069 | G7: 0.07296538821 | H7: =SUM(H4:H6) -> 46 | I7: 32 | J7: 39 | K7: 0 | L7: 39 | M7: =sum(M4:M6) -> 156

Sheet Philadelphia Vill. Trustee
F1: Voter Registration | G1: % Turnout | H1: Jenna Thomas | I1: Matthew J. Montroy | J1: Write-ins | K1: Blank/Void | L1: Total Votes Cast
A2: Philadelphia Village Trustee (Republican) Vote for One
A3: ED | B3: EVBM/Absentee | C3: Affidavit | D3: Machine Turnout | E3: Total Turnout
A4: Philadelphia 1 | B4: 3 | C4: 0 | D4: 40 | E4: =sum(B4:D4) -> 43 | F4: 236 | G4: =(E4/F4) -> 0.1822033898 | H4: 14 | I4: 29 | J4: 0 | K4: 0 | L4: =sum(H4:K4) -> 43
A5: District Totals | B5: =SUM(B4) -> 3 | C5: 0 | D5: 40 | E5: 43 | F5: 236 | G5: 0.1822033898 | H5: =SUM(H4) -> 14 | I5: 29 | J5: 0 | K5: 0 | L5: =sum(L4) -> 43

Sheet Theresa Supervisor
F1: Voter Registration | G1: % Turnout | H1: Steven Marcinkowski | I1: Kristopher N. Ryder | J1: Write-ins | K1: Blank/Void | L1: Total Votes Cast
A2: Theresa Town Supervisor (Republican) Vote for One
A3: ED | B3: EVBM/Absentee | C3: Affidavit | D3: Machine Turnout | E3: Total Turnout
A4: Theresa 1 | B4: 5 | C4: 0 | D4: 161 | E4: 166 | F4: 802 | G4: =(E4/F4) -> 0.2069825436 | H4: 49 | I4: 115 | J4: 0 | K4: 2 | L4: =sum(H4:K4) -> 166
A5: District Totals | B5: =SUM(B4) -> 5 | C5: 0 | D5: 161 | E5: 166 | F5: 802 | G5: 0.2069825436 | H5: =SUM(H4) -> 49 | I5: 115 | J5: 0 | K5: 2 | L5: =sum(L4) -> 166

Sheet Theresa Justice(Dem)
F1: Voter Registration | G1: % Turnout | H1: Rachel A. Roberts | I1: Isabelle M. Savage | J1: Write-ins | K1: Blank/Void | L1: Total Votes Cast
A2: Theresa Town Justice (Democrat) Vote for One
A3: ED | B3: EVBM/Absentee | C3: Affidavit | D3: Machine Turnout | E3: Total Turnout
A4: Theresa 1 | B4: 4 | C4: 0 | D4: 50 | E4: 54 | F4: 371 | G4: =(E4/F4) -> 0.1455525606 | H4: 22 | I4: 32 | J4: 0 | K4: 0 | L4: =sum(H4:K4) -> 54
A5: District Totals | B5: =SUM(B4) -> 4 | C5: 0 | D5: 50 | E5: 54 | F5: 371 | G5: 0.1455525606 | H5: =SUM(H4) -> 22 | I5: 32 | J5: 0 | K5: 0 | L5: =sum(L4) -> 54

Sheet Theresa Justice (Rep)
F1: Voter Registration | G1: % Turnout | H1: Isabelle Savage | I1: Rachel A. Roberts | J1: Write-ins | K1: Blank/Void | L1: Total Votes Cast
A2: Theresa Town Justice (Republican) Vote for One
A3: ED | B3: EVBM/Absentee | C3: Affidavit | D3: Machine Turnout | E3: Total Turnout
A4: Theresa 1 | B4: 5 | C4: 0 | D4: 161 | E4: 166 | F4: 801 | G4: =(E4/F4) -> 0.2072409488 | H4: 109 | I4: 53 | J4: 0 | K4: 4 | L4: =sum(H4:K4) -> 166
A5: District Totals | B5: =SUM(B4) -> 5 | C5: 0 | D5: 161 | E5: 166 | F5: 801 | G5: 0.2072409488 | H5: =SUM(H4) -> 109 | I5: 53 | J5: 0 | K5: 4 | L5: =sum(L4) -> 166

Sheet Theresa Justice (Con)
F1: Voter Registration | G1: % Turnout | H1: Isabelle Savage | I1: Rachel A. Roberts | J1: Write-ins | K1: Blank/Void | L1: Total Votes Cast
A2: Theresa Town Justice (Conservative) Vote for One
A3: ED | B3: EVBM/Absentee | C3: Affidavit | D3: Machine Turnout | E3: Total Turnout
A4: Theresa 1 | B4: 1 | C4: 0 | D4: 5 | E4: 6 | F4: 31 | G4: =(E4/F4) -> 0.1935483871 | H4: 4 | I4: 2 | J4: 0 | K4: 0 | L4: =sum(H4:K4) -> 6
A5: District Totals | B5: =SUM(B4) -> 1 | C5: 0 | D5: 5 | E5: 6 | F5: 31 | G5: 0.1935483871 | H5: =SUM(H4) -> 4 | I5: 2 | J5: 0 | K5: 0 | L5: =sum(L4) -> 6

Sheet Worth ClerkColl
F1: Voter Registration | G1: % Turnout | H1: Paul Ann Molnar | I1: Katelyn S. Macklen | J1: Write-ins | K1: Blank/Void | L1: Total Votes Cast
A2: Worth Town Clerk/Tax Collector (Republican) Vote for One
A3: ED | B3: EVBM/Absentee | C3: Affidavit | D3: Machine Turnout | E3: Total Turnout
A4: Worth 1 | B4: 4 | C4: 0 | D4: 35 | E4: 39 | F4: 104 | G4: =(E4/F4) -> 0.375 | H4: 14 | I4: 22 | J4: 0 | K4: 0 | L4: =sum(H4:K4) -> 36
A5: District Totals | B5: =SUM(B4) -> 4 | C5: 0 | D5: 35 | E5: 39 | F5: 104 | G5: 0.375 | H5: =SUM(H4) -> 14 | I5: 22 | J5: 0 | K5: 0 | L5: =sum(L4) -> 36

Sheet Watertown City Council
F1: Voter Registration | G1: % Turnout | H1: Peter E. Monaco | I1: Robert T. Schorr | J1: K. Colin Burns | K1: Anthony Velasquez | L1: Douglas E. Osborne Jr. | M1: Lisa Ruggerio | N1: Shane Garrabrant | O1: Write-ins | P1: Blank/Void | Q1: Total Votes Cast
A2: Watertown City Council (Vote for 2)
A3: ED | B3: EVBM/Absentee | C3: Affidavit | D3: Machine Turnout | E3: Total Turnout
A4: 12-1 | B4: 52 | C4: 3 | D4: 378 | E4: =SUM(B4:D4) -> 433 | F4: 1532 | G4: =(E4/F4) -> 0.2826370757 | H4: 163 | I4: 33 | J4: 46 | K4: 98 | L4: 149 | M4: 69 | N4: 229 | O4: 20 | P4: 59 | Q4: =SUM(H4:P4) -> 866
A5: 12-2 | B5: 23 | C5: 0 | D5: 144 | E5: 167 | F5: 1288 | G5: 0.1296583851 | H5: 64 | I5: 18 | J5: 35 | K5: 36 | L5: 45 | M5: 26 | N5: 81 | O5: 9 | P5: 20 | Q5: 334
A6: 12-3 | B6: 23 | C6: 0 | D6: 186 | E6: 209 | F6: 1435 | G6: 0.1456445993 | H6: 66 | I6: 14 | J6: 21 | K6: 63 | L6: 59 | M6: 48 | N6: 101 | O6: 22 | P6: 24 | Q6: 418
A7: 13-1 | B7: 20 | C7: 1 | D7: 297 | E7: 318 | F7: 1765 | G7: 0.1801699717 | H7: 132 | I7: 28 | J7: 35 | K7: 77 | L7: 107 | M7: 64 | N7: 126 | O7: 35 | P7: 32 | Q7: 636
A8: 13-2 | B8: 22 | C8: 1 | D8: 165 | E8: 188 | F8: 1847 | G8: 0.1017866811 | H8: 64 | I8: 26 | J8: 25 | K8: 54 | L8: 55 | M8: 43 | N8: 56 | O8: 26 | P8: 27 | Q8: 376
A9: 14-1 | B9: 13 | C9: 0 | D9: 96 | E9: 109 | F9: 939 | G9: 0.1160809372 | H9: 37 | I9: 22 | J9: 17 | K9: 20 | L9: 38 | M9: 28 | N9: 26 | O9: 19 | P9: 11 | Q9: 218
A10: 15-1 | B10: 42 | C10: 5 | D10: 157 | E10: 204 | F10: 1924 | G10: 0.106029106 | H10: 61 | I10: 59 | J10: 26 | K10: 43 | L10: 51 | M10: 68 | N10: 45 | O10: 31 | P10: 24 | Q10: 408
A11: 15-2 | B11: 13 | C11: 0 | D11: 155 | E11: 168 | F11: 1392 | G11: 0.1206896552 | H11: 82 | I11: 11 | J11: 23 | K11: 35 | L11: 55 | M11: 34 | N11: 68 | O11: 7 | P11: 21 | Q11: 336
A12: City Totals | B12: =SUM(B4:B11) -> 208 | C12: 10 | D12: 1578 | E12: 1796 | F12: =SUM(F4:F11) -> 12122 | G12: 0.1481603696 | H12: =SUM(H4:H11) -> 669 | I12: 211 | J12: 228 | K12: 426 | L12: 559 | M12: 380 | N12: 732 | O12: 169 | P12: 218 | Q12: 3592
A16: Write-ins
A17: Scatter | B17: 4
A18: Cliff Olney | B18: 155
A19: Anthony Burgess | B19: 1
A20: Brian Navarra | B20: 1
A21: Cody Horbacz | B21: 1
A22: Dan Daugherty | B22: 1
A23: Jeff Smith | B23: 1
A24: Matt Saunders | B24: 1
A25: Paul Ward | B25: 2
A26: Riley Keenan | B26: 1
A27: Timothy P. ODonnell | B27: 1
A28: Total | B28: =SUM(B17:B27) -> 169
